[Event "Titled Tuesday Blitz August 17 2021"]
[White "Preotu, Razvan"]
[Black "Taichman, Ori"]
[WhiteFideId "2613280"]
[BlackFideId "2804069"]
[WhiteElo "2407"]
[BlackElo "2227"]
[Result "1-0"]
[Round "07"]
[TimeControl "180+1"]
[Date "2021.08.17"]
[WhiteClock "0:00:05"]
[BlackClock "0:00:11"]

1. e4 {[%clk 0:03:00]}  c5 {[%clk 0:02:57]} 2. Nf3 {[%clk 0:03:00]}  Nc6 {[%clk 0:02:57]} 3. Bb5 {[%clk 0:02:58]}  d6 {[%clk 0:02:56]} 4. O-O {[%clk 0:02:56]}  Bd7 {[%clk 0:02:57]} 5. Re1 {[%clk 0:02:56]}  Nf6 {[%clk 0:02:56]} 6. c3 {[%clk 0:02:51]}  a6 {[%clk 0:02:56]} 7. Bf1 {[%clk 0:02:51]}  Bg4 {[%clk 0:02:55]} 8. h3 {[%clk 0:02:47]}  Bxf3 {[%clk 0:02:55]} 9. Qxf3 {[%clk 0:02:46]}  g6 {[%clk 0:02:56]} 10. d3 {[%clk 0:02:32]}  Bg7 {[%clk 0:02:56]} 11. Be3 {[%clk 0:02:31]}  Nd7 {[%clk 0:02:56]} 12. Qd1 {[%clk 0:02:27]}  Qb6 {[%clk 0:02:48]} 13. Qd2 {[%clk 0:02:26]}  O-O {[%clk 0:02:43]} 14. Na3 {[%clk 0:02:23]}  Rab8 {[%clk 0:02:39]} 15. Nc4 {[%clk 0:02:19]}  Qc7 {[%clk 0:02:31]} 16. d4 {[%clk 0:02:15]}  b5 {[%clk 0:02:31]} 17. Na3 {[%clk 0:02:02]}  e5 {[%clk 0:01:47]} 18. dxc5 {[%clk 0:01:51]}  Nxc5 {[%clk 0:01:38]} 19. Qc2 {[%clk 0:01:08]}  f5 {[%clk 0:01:23]} 20. exf5 {[%clk 0:01:05]}  gxf5 {[%clk 0:01:22]} 21. Rad1 {[%clk 0:00:59]}  Rbd8 {[%clk 0:00:59]} 22. b4 {[%clk 0:00:59]}  Ne6 {[%clk 0:00:57]} 23. Qb3 {[%clk 0:00:59]}  Qf7 {[%clk 0:00:57]} 24. Bb6 {[%clk 0:00:55]}  Rd7 {[%clk 0:00:53]} 25. Nc2 {[%clk 0:00:47]}  f4 {[%clk 0:00:26]} 26. c4 {[%clk 0:00:44]}  Rb8 {[%clk 0:00:24]} 27. cxb5 {[%clk 0:00:34]}  axb5 {[%clk 0:00:21]} 28. Ba5 {[%clk 0:00:20]}  Nxa5 {[%clk 0:00:21]} 29. bxa5 {[%clk 0:00:21]}  Nc5 {[%clk 0:00:20]} 30. Qxf7+ {[%clk 0:00:15]}  Kxf7 {[%clk 0:00:21]} 31. Nb4 {[%clk 0:00:16]}  Ke6 {[%clk 0:00:20]} 32. Be2 {[%clk 0:00:12]}  d5 {[%clk 0:00:19]} 33. Bg4+ {[%clk 0:00:13]}  Ke7 {[%clk 0:00:18]} 34. Nc6+ {[%clk 0:00:12]}  Kd6 {[%clk 0:00:14]} 35. Nxb8 {[%clk 0:00:11]}  Rc7 {[%clk 0:00:13]} 36. a6 {[%clk 0:00:09]}  e4 {[%clk 0:00:12]} 37. Bf5 {[%clk 0:00:04]}  Bc3 {[%clk 0:00:11]} 38. Rxe4 {[%clk 0:00:03]}  Nxe4 {[%clk 0:00:11]} 39. Bxe4 {[%clk 0:00:04]}  d4 {[%clk 0:00:12]} 40. Nc6 {[%clk 0:00:04]}  Rxc6 {[%clk 0:00:12]} 41. Bxc6 {[%clk 0:00:04]}  Kxc6 {[%clk 0:00:13]} 42. Kf1 {[%clk 0:00:04]}  Kb6 {[%clk 0:00:14]} 43. Ke2 {[%clk 0:00:04]}  Kxa6 {[%clk 0:00:14]} 44. Kd3 {[%clk 0:00:05]}  Ka5 {[%clk 0:00:15]} 45. Rb1 {[%clk 0:00:05]}  Ka4 {[%clk 0:00:15]} 46. Rb3 {[%clk 0:00:05]}  b4 {[%clk 0:00:15]} 47. g4 {[%clk 0:00:06]}  fxg3 {[%clk 0:00:15]} 48. fxg3 {[%clk 0:00:06]}  Kb5 {[%clk 0:00:15]} 49. g4 {[%clk 0:00:07]}  Kc5 {[%clk 0:00:16]} 50. h4 {[%clk 0:00:07]}  Be1 {[%clk 0:00:16]} 51. h5 {[%clk 0:00:06]}  Bh4 {[%clk 0:00:17]} 52. Rb1 {[%clk 0:00:05]}  Bf6 {[%clk 0:00:17]} 53. Rf1 {[%clk 0:00:06]}  Bg7 {[%clk 0:00:17]} 54. Rf7 {[%clk 0:00:06]}  Be5 {[%clk 0:00:16]} 55. Rf5 {[%clk 0:00:05]}  Kd5 {[%clk 0:00:16]} 56. g5 {[%clk 0:00:05]}  Ke6 {[%clk 0:00:17]} 57. Rf1 {[%clk 0:00:05]}  Bg7 {[%clk 0:00:11]} 58. g6 {[%clk 0:00:04]}  hxg6 {[%clk 0:00:12]} 59. hxg6 {[%clk 0:00:05]}  Ke5 {[%clk 0:00:12]} 60. Rf7 {[%clk 0:00:05]}  Bf6 {[%clk 0:00:11]} 61. g7 {[%clk 0:00:05]} 1-0


[Site "https://www.chess.com"]

[Event "Titled Tuesday Blitz August 17 2021"]
[White "Prraneeth Vuppala"]
[Black "Rodriguez Hernandez, Luis Daniel"]
[WhiteFideId "46622373"]
[BlackFideId "3506770"]
[WhiteElo "1759"]
[BlackElo "2133"]
[Result "0-1"]
[Round "07"]
[TimeControl "180+1"]
[Date "2021.08.17"]
[WhiteClock "0:00:06"]
[BlackClock "0:01:37"]

1. d4 {[%clk 0:03:00]}  Nf6 {[%clk 0:02:59]} 2. c4 {[%clk 0:03:00]}  g6 {[%clk 0:02:59]} 3. Nc3 {[%clk 0:02:59]}  Bg7 {[%clk 0:03:00]} 4. e4 {[%clk 0:02:58]}  O-O {[%clk 0:03:01]} 5. Be3 {[%clk 0:02:57]}  d6 {[%clk 0:03:02]} 6. h3 {[%clk 0:02:57]}  Na6 {[%clk 0:03:02]} 7. Nf3 {[%clk 0:02:31]}  c5 {[%clk 0:03:02]} 8. d5 {[%clk 0:02:24]}  e6 {[%clk 0:03:02]} 9. Be2 {[%clk 0:02:18]}  exd5 {[%clk 0:03:01]} 10. cxd5 {[%clk 0:02:15]}  Nc7 {[%clk 0:03:01]} 11. Nd2 {[%clk 0:02:06]}  Re8 {[%clk 0:03:01]} 12. a4 {[%clk 0:02:04]}  b6 {[%clk 0:02:43]} 13. O-O {[%clk 0:01:46]}  a6 {[%clk 0:02:44]} 14. Qc2 {[%clk 0:01:40]}  Rb8 {[%clk 0:02:44]} 15. f4 {[%clk 0:01:23]}  Ncxd5 {[%clk 0:02:33]} 16. Nxd5 {[%clk 0:01:19]}  Nxd5 {[%clk 0:02:33]} 17. Nc4 {[%clk 0:01:01]}  Nxe3 {[%clk 0:02:21]} 18. Nxe3 {[%clk 0:01:02]}  Bd4 {[%clk 0:02:21]} 19. Ra3 {[%clk 0:00:56]}  Bb7 {[%clk 0:02:01]} 20. Bf3 {[%clk 0:00:55]}  Qe7 {[%clk 0:02:01]} 21. Kh1 {[%clk 0:00:39]}  Bxe4 {[%clk 0:02:01]} 22. Qd2 {[%clk 0:00:35]}  Bxf3 {[%clk 0:01:58]} 23. Rxf3 {[%clk 0:00:35]}  Qe4 {[%clk 0:01:58]} 24. f5 {[%clk 0:00:26]}  Qb1+ {[%clk 0:01:53]} 25. Kh2 {[%clk 0:00:23]}  Qxb2 {[%clk 0:01:45]} 26. Qxb2 {[%clk 0:00:15]}  Bxb2 {[%clk 0:01:46]} 27. Rb3 {[%clk 0:00:15]}  Be5+ {[%clk 0:01:43]} 28. g3 {[%clk 0:00:14]}  b5 {[%clk 0:01:43]} 29. axb5 {[%clk 0:00:12]}  axb5 {[%clk 0:01:44]} 30. Nd5 {[%clk 0:00:13]}  c4 {[%clk 0:01:44]} 31. Ra3 {[%clk 0:00:13]}  Ra8 {[%clk 0:01:43]} 32. Rxa8 {[%clk 0:00:10]}  Rxa8 {[%clk 0:01:43]} 33. fxg6 {[%clk 0:00:10]}  Ra2+ {[%clk 0:01:42]} 34. Kh1 {[%clk 0:00:09]}  hxg6 {[%clk 0:01:41]} 35. h4 {[%clk 0:00:08]}  c3 {[%clk 0:01:38]} 36. Nxc3 {[%clk 0:00:06]}  Ra3 {[%clk 0:01:37]} 0-1


[Site "https://www.chess.com"]

[Event "Titled Tuesday Blitz August 17 2021"]
[White "Quparadze, Giga"]
[Black "Timmermans, Mark"]
[WhiteFideId "13602250"]
[BlackFideId "1026399"]
[WhiteElo "2658"]
[BlackElo "2460"]
[Result "1/2-1/2"]
[Round "07"]
[TimeControl "180+1"]
[Date "2021.08.17"]
[WhiteClock "0:00:10"]
[BlackClock "0:00:22"]

1. e4 {[%clk 0:03:00]}  e5 {[%clk 0:02:59]} 2. Nf3 {[%clk 0:03:00]}  Nc6 {[%clk 0:03:00]} 3. Bb5 {[%clk 0:03:00]}  f5 {[%clk 0:03:00]} 4. d3 {[%clk 0:03:00]}  fxe4 {[%clk 0:02:58]} 5. dxe4 {[%clk 0:03:01]}  Nf6 {[%clk 0:02:58]} 6. Nc3 {[%clk 0:03:00]}  Bb4 {[%clk 0:02:58]} 7. O-O {[%clk 0:02:56]}  Bxc3 {[%clk 0:02:59]} 8. bxc3 {[%clk 0:02:56]}  d6 {[%clk 0:02:59]} 9. Bg5 {[%clk 0:02:39]}  O-O {[%clk 0:02:57]} 10. Nd2 {[%clk 0:02:34]}  Qe8 {[%clk 0:02:51]} 11. Rb1 {[%clk 0:02:29]}  Qg6 {[%clk 0:02:46]} 12. Bc4+ {[%clk 0:02:29]}  Kh8 {[%clk 0:02:46]} 13. Bxf6 {[%clk 0:02:29]}  Rxf6 {[%clk 0:02:32]} 14. f3 {[%clk 0:02:25]}  Rb8 {[%clk 0:02:28]} 15. Qe2 {[%clk 0:02:21]}  Bd7 {[%clk 0:02:22]} 16. Bb5 {[%clk 0:02:21]}  a6 {[%clk 0:02:11]} 17. Bd3 {[%clk 0:02:19]}  Rff8 {[%clk 0:02:10]} 18. Nc4 {[%clk 0:02:19]}  h5 {[%clk 0:02:04]} 19. Ne3 {[%clk 0:02:17]}  Qg5 {[%clk 0:02:03]} 20. Kh1 {[%clk 0:02:15]}  Ne7 {[%clk 0:02:01]} 21. g3 {[%clk 0:02:13]}  Ng6 {[%clk 0:02:01]} 22. Rf2 {[%clk 0:02:12]}  Be6 {[%clk 0:01:59]} 23. Rg1 {[%clk 0:02:12]}  Qh6 {[%clk 0:01:43]} 24. Nf5 {[%clk 0:02:11]}  Bxf5 {[%clk 0:01:44]} 25. exf5 {[%clk 0:02:11]}  Ne7 {[%clk 0:01:44]} 26. g4 {[%clk 0:02:12]}  Nd5 {[%clk 0:01:42]} 27. g5 {[%clk 0:02:12]}  Qh7 {[%clk 0:01:42]} 28. f6 {[%clk 0:02:12]}  g6 {[%clk 0:01:41]} 29. f4 {[%clk 0:02:08]}  Nxf4 {[%clk 0:01:40]} 30. Rxf4 {[%clk 0:02:08]}  exf4 {[%clk 0:01:41]} 31. Qe4 {[%clk 0:02:09]}  Rg8 {[%clk 0:01:13]} 32. Qxf4 {[%clk 0:02:07]}  Qf7 {[%clk 0:01:10]} 33. Qd4 {[%clk 0:02:00]}  d5 {[%clk 0:01:06]} 34. Re1 {[%clk 0:01:50]}  Rbe8 {[%clk 0:01:05]} 35. Rf1 {[%clk 0:01:07]}  b6 {[%clk 0:01:00]} 36. c4 {[%clk 0:01:05]}  Rd8 {[%clk 0:00:58]} 37. cxd5 {[%clk 0:01:00]}  Qxd5+ {[%clk 0:00:59]} 38. Qxd5 {[%clk 0:00:57]}  Rxd5 {[%clk 0:01:00]} 39. Rg1 {[%clk 0:00:40]}  b5 {[%clk 0:00:53]} 40. a4 {[%clk 0:00:36]}  bxa4 {[%clk 0:00:46]} 41. Bc4 {[%clk 0:00:36]}  Ra5 {[%clk 0:00:47]} 42. h4 {[%clk 0:00:16]}  a3 {[%clk 0:00:46]} 43. Bxg8 {[%clk 0:00:15]}  Kxg8 {[%clk 0:00:47]} 44. Kg2 {[%clk 0:00:16]}  a2 {[%clk 0:00:46]} 45. Ra1 {[%clk 0:00:16]}  Ra4 {[%clk 0:00:45]} 46. Kg3 {[%clk 0:00:16]}  Kf7 {[%clk 0:00:45]} 47. Kf3 {[%clk 0:00:16]}  a5 {[%clk 0:00:16]} 48. Ke3 {[%clk 0:00:15]}  Rxh4 {[%clk 0:00:16]} 49. Rxa2 {[%clk 0:00:15]}  a4 {[%clk 0:00:17]} 50. Rb2 {[%clk 0:00:12]}  a3 {[%clk 0:00:17]} 51. Rb7 {[%clk 0:00:12]}  Rg4 {[%clk 0:00:18]} 52. Rxc7+ {[%clk 0:00:12]}  Kf8 {[%clk 0:00:19]} 53. Rc8+ {[%clk 0:00:12]}  Kf7 {[%clk 0:00:19]} 54. Rc7+ {[%clk 0:00:12]}  Kf8 {[%clk 0:00:20]} 55. Rc5 {[%clk 0:00:12]}  a2 {[%clk 0:00:20]} 56. Ra5 {[%clk 0:00:12]}  Rxg5 {[%clk 0:00:20]} 57. Rxa2 {[%clk 0:00:12]}  Kf7 {[%clk 0:00:20]} 58. Ra6 {[%clk 0:00:11]}  Rf5 {[%clk 0:00:21]} 59. c4 {[%clk 0:00:12]}  Rxf6 {[%clk 0:00:21]} 60. Ra7+ {[%clk 0:00:12]}  Kg8 {[%clk 0:00:22]} 61. c5 {[%clk 0:00:13]}  h4 {[%clk 0:00:22]} 62. Kd4 {[%clk 0:00:12]}  h3 {[%clk 0:00:22]} 63. Ra3 {[%clk 0:00:12]}  Rf4+ {[%clk 0:00:21]} 64. Kd5 {[%clk 0:00:11]}  Rh4 {[%clk 0:00:22]} 65. Ra1 {[%clk 0:00:11]}  h2 {[%clk 0:00:22]} 66. Rh1 {[%clk 0:00:11]}  g5 {[%clk 0:00:23]} 67. c6 {[%clk 0:00:12]}  Rh7 {[%clk 0:00:22]} 68. Kd6 {[%clk 0:00:07]}  g4 {[%clk 0:00:22]} 69. c7 {[%clk 0:00:07]}  Rxc7 {[%clk 0:00:22]} 70. Rxh2 {[%clk 0:00:08]}  Rc4 {[%clk 0:00:21]} 71. Ke5 {[%clk 0:00:08]}  Kf7 {[%clk 0:00:21]} 72. Kf5 {[%clk 0:00:08]}  g3 {[%clk 0:00:20]} 73. Rg2 {[%clk 0:00:08]}  Rc3 {[%clk 0:00:21]} 74. Kg4 {[%clk 0:00:09]}  Kf6 {[%clk 0:00:22]} 75. Rxg3 {[%clk 0:00:09]}  Rxg3+ {[%clk 0:00:22]} 76. Kxg3 {[%clk 0:00:10]} 1/2-1/2


[Site "https://www.chess.com"]

[Event "Titled Tuesday Blitz August 17 2021"]
[White "Rodchenkov, Vitaly"]
[Black "D`Costa, Lorin"]
[WhiteFideId "4152964"]
[BlackFideId "409219"]
[WhiteElo "2337"]
[BlackElo "2287"]
[Result "1-0"]
[Round "07"]
[TimeControl "180+1"]
[Date "2021.08.17"]
[WhiteClock "0:00:54"]
[BlackClock "0:00:01"]

1. e4 {[%clk 0:03:00]}  e6 {[%clk 0:02:58]} 2. d4 {[%clk 0:03:00]}  d5 {[%clk 0:02:58]} 3. Nd2 {[%clk 0:03:00]}  dxe4 {[%clk 0:02:56]} 4. Nxe4 {[%clk 0:03:00]}  Bd7 {[%clk 0:02:57]} 5. Nf3 {[%clk 0:03:00]}  Bc6 {[%clk 0:02:57]} 6. Bd3 {[%clk 0:03:00]}  Nd7 {[%clk 0:02:57]} 7. Qe2 {[%clk 0:03:00]}  Ngf6 {[%clk 0:02:55]} 8. Nxf6+ {[%clk 0:02:56]}  Nxf6 {[%clk 0:02:54]} 9. Bg5 {[%clk 0:02:55]}  Be7 {[%clk 0:02:47]} 10. O-O-O {[%clk 0:02:54]}  Bxf3 {[%clk 0:02:40]} 11. Qxf3 {[%clk 0:02:53]}  c6 {[%clk 0:02:41]} 12. Bc4 {[%clk 0:02:32]}  Qa5 {[%clk 0:02:31]} 13. h4 {[%clk 0:02:29]}  Rd8 {[%clk 0:02:04]} 14. Bb3 {[%clk 0:02:28]}  Nd5 {[%clk 0:01:40]} 15. Bd2 {[%clk 0:02:26]}  Qb6 {[%clk 0:01:35]} 16. c4 {[%clk 0:02:23]}  Nf6 {[%clk 0:01:32]} 17. Bc3 {[%clk 0:02:23]}  Bb4 {[%clk 0:01:19]} 18. Bxb4 {[%clk 0:02:14]}  Qxb4 {[%clk 0:01:19]} 19. g4 {[%clk 0:02:15]}  a5 {[%clk 0:01:04]} 20. g5 {[%clk 0:02:14]}  Nd7 {[%clk 0:01:04]} 21. a3 {[%clk 0:02:09]}  Qe7 {[%clk 0:00:56]} 22. Bc2 {[%clk 0:02:00]}  Nb6 {[%clk 0:00:45]} 23. Qc3 {[%clk 0:01:57]}  O-O {[%clk 0:00:37]} 24. f4 {[%clk 0:01:57]}  a4 {[%clk 0:00:21]} 25. h5 {[%clk 0:01:56]}  f5 {[%clk 0:00:10]} 26. Rhe1 {[%clk 0:01:51]}  Qd6 {[%clk 0:00:07]} 27. Re5 {[%clk 0:01:15]}  Nd7 {[%clk 0:00:06]} 28. c5 {[%clk 0:01:15]}  Qe7 {[%clk 0:00:06]} 29. Re3 {[%clk 0:01:12]}  b6 {[%clk 0:00:04]} 30. Rde1 {[%clk 0:01:06]}  Qf7 {[%clk 0:00:02]} 31. h6 {[%clk 0:00:56]}  bxc5 {[%clk 0:00:01]} 32. dxc5 {[%clk 0:00:54]} 1-0


[Site "https://www.chess.com"]

[Event "Titled Tuesday Blitz August 17 2021"]
[White "Roman, Rodrigo"]
[Black "sganerdene"]
[WhiteFideId "3701220"]
[WhiteElo "2043"]
[BlackElo "2635"]
[Result "1/2-1/2"]
[Round "07"]
[TimeControl "180+1"]
[Date "2021.08.17"]
[WhiteClock "0:01:00"]
[BlackClock "0:00:11"]

1. Nf3 {[%clk 0:03:00]}  Nf6 {[%clk 0:02:59]} 2. g3 {[%clk 0:03:01]}  g6 {[%clk 0:03:00]} 3. Bg2 {[%clk 0:03:00]}  Bg7 {[%clk 0:03:00]} 4. O-O {[%clk 0:03:01]}  O-O {[%clk 0:03:01]} 5. d4 {[%clk 0:03:01]}  d6 {[%clk 0:03:01]} 6. c3 {[%clk 0:02:56]}  Nc6 {[%clk 0:03:00]} 7. Nbd2 {[%clk 0:02:54]}  e5 {[%clk 0:03:00]} 8. dxe5 {[%clk 0:02:52]}  dxe5 {[%clk 0:02:58]} 9. e4 {[%clk 0:02:52]}  Be6 {[%clk 0:02:58]} 10. Qc2 {[%clk 0:02:51]}  h6 {[%clk 0:02:55]} 11. Rd1 {[%clk 0:02:50]}  Qe7 {[%clk 0:02:54]} 12. b4 {[%clk 0:02:50]}  Rfd8 {[%clk 0:02:52]} 13. a4 {[%clk 0:02:50]}  Bg4 {[%clk 0:02:45]} 14. Ba3 {[%clk 0:02:50]}  Qe6 {[%clk 0:02:45]} 15. Nf1 {[%clk 0:02:47]}  Bh3 {[%clk 0:02:38]} 16. Ne3 {[%clk 0:02:42]}  Bxg2 {[%clk 0:02:38]} 17. Kxg2 {[%clk 0:02:43]}  Kh7 {[%clk 0:02:25]} 18. b5 {[%clk 0:02:41]}  Na5 {[%clk 0:02:22]} 19. c4 {[%clk 0:02:41]}  b6 {[%clk 0:02:13]} 20. Nd5 {[%clk 0:02:41]}  Rac8 {[%clk 0:02:07]} 21. Bb4 {[%clk 0:02:38]}  Nb7 {[%clk 0:02:06]} 22. a5 {[%clk 0:02:35]}  Nd6 {[%clk 0:02:01]} 23. Bxd6 {[%clk 0:02:31]}  Rxd6 {[%clk 0:01:47]} 24. axb6 {[%clk 0:02:27]}  axb6 {[%clk 0:01:48]} 25. Ra7 {[%clk 0:02:24]}  Ne8 {[%clk 0:01:40]} 26. h4 {[%clk 0:02:21]}  f5 {[%clk 0:01:35]} 27. h5 {[%clk 0:02:18]}  f4 {[%clk 0:01:35]} 28. hxg6+ {[%clk 0:02:16]}  Qxg6 {[%clk 0:01:32]} 29. Nh4 {[%clk 0:02:17]}  Qg4 {[%clk 0:01:30]} 30. Rh1 {[%clk 0:02:13]}  Nf6 {[%clk 0:01:13]} 31. Nf5 {[%clk 0:02:09]}  Re6 {[%clk 0:01:02]} 32. Nxc7 {[%clk 0:01:59]}  Rxc7 {[%clk 0:00:39]} 33. Rxc7 {[%clk 0:02:00]}  Ne8 {[%clk 0:00:39]} 34. Rc6 {[%clk 0:01:45]}  Rf6 {[%clk 0:00:27]} 35. f3 {[%clk 0:01:04]}  Qg6 {[%clk 0:00:25]} 36. Rxf6 {[%clk 0:01:03]}  Nxf6 {[%clk 0:00:25]} 37. Nxg7 {[%clk 0:01:00]}  Qxg3+ {[%clk 0:00:24]} 38. Kf1 {[%clk 0:00:59]}  Qxf3+ {[%clk 0:00:24]} 39. Kg1 {[%clk 0:00:59]}  Qg3+ {[%clk 0:00:15]} 40. Qg2 {[%clk 0:01:00]}  Qe1+ {[%clk 0:00:14]} 41. Kh2 {[%clk 0:01:00]}  Qh4+ {[%clk 0:00:14]} 42. Kg1 {[%clk 0:00:59]}  Qe1+ {[%clk 0:00:14]} 43. Kh2 {[%clk 0:00:59]}  Qh4+ {[%clk 0:00:10]} 44. Kg1 {[%clk 0:01:00]}  Qe1+ {[%clk 0:00:11]} 1/2-1/2


[Site "https://www.chess.com"]

[Event "Titled Tuesday Blitz August 17 2021"]
[White "Ronka, Erik"]
[Black "Shkapenko, Pavel"]
[WhiteFideId "505080"]
[BlackFideId "4151933"]
[WhiteElo "2264"]
[BlackElo "2386"]
[Result "1-0"]
[Round "07"]
[TimeControl "180+1"]
[Date "2021.08.17"]
[WhiteClock "0:00:20"]
[BlackClock "0:00:17"]

1. d4 {[%clk 0:03:00]}  Nf6 {[%clk 0:02:59]} 2. c4 {[%clk 0:03:01]}  e6 {[%clk 0:03:00]} 3. Nc3 {[%clk 0:03:01]}  Bb4 {[%clk 0:03:00]} 4. a3 {[%clk 0:03:02]}  Bxc3+ {[%clk 0:02:59]} 5. bxc3 {[%clk 0:03:03]}  c5 {[%clk 0:03:00]} 6. e3 {[%clk 0:03:03]}  O-O {[%clk 0:02:54]} 7. Bd3 {[%clk 0:03:03]}  Nc6 {[%clk 0:02:53]} 8. Ne2 {[%clk 0:03:02]}  b6 {[%clk 0:02:24]} 9. e4 {[%clk 0:03:01]}  Ne8 {[%clk 0:02:18]} 10. O-O {[%clk 0:03:02]}  Ba6 {[%clk 0:02:02]} 11. f4 {[%clk 0:02:38]}  f5 {[%clk 0:01:54]} 12. exf5 {[%clk 0:02:38]}  exf5 {[%clk 0:01:49]} 13. dxc5 {[%clk 0:02:38]}  bxc5 {[%clk 0:01:39]} 14. Ng3 {[%clk 0:02:38]}  g6 {[%clk 0:01:36]} 15. Be3 {[%clk 0:02:39]}  d6 {[%clk 0:01:30]} 16. Re1 {[%clk 0:02:34]}  Na5 {[%clk 0:01:17]} 17. Bf2 {[%clk 0:02:25]}  Nf6 {[%clk 0:01:14]} 18. Nf1 {[%clk 0:02:14]}  Ng4 {[%clk 0:01:05]} 19. Bg3 {[%clk 0:01:55]}  Qd7 {[%clk 0:00:56]} 20. h3 {[%clk 0:01:55]}  Nf6 {[%clk 0:00:56]} 21. Ne3 {[%clk 0:01:50]}  Rfe8 {[%clk 0:00:54]} 22. Bh4 {[%clk 0:01:40]}  Qf7 {[%clk 0:00:49]} 23. Qa4 {[%clk 0:01:28]}  Bb7 {[%clk 0:00:37]} 24. Qxa5 {[%clk 0:01:21]}  Ne4 {[%clk 0:00:38]} 25. Qa4 {[%clk 0:00:57]}  Nxc3 {[%clk 0:00:36]} 26. Qc2 {[%clk 0:00:56]}  Ne4 {[%clk 0:00:36]} 27. Nd5 {[%clk 0:00:56]}  Bxd5 {[%clk 0:00:30]} 28. cxd5 {[%clk 0:00:57]}  Nf6 {[%clk 0:00:30]} 29. Qc4 {[%clk 0:00:42]}  Qg7 {[%clk 0:00:29]} 30. Rxe8+ {[%clk 0:00:40]}  Rxe8 {[%clk 0:00:29]} 31. Re1 {[%clk 0:00:41]}  Rxe1+ {[%clk 0:00:28]} 32. Bxe1 {[%clk 0:00:40]}  Nh5 {[%clk 0:00:27]} 33. Bc3 {[%clk 0:00:39]}  Qh6 {[%clk 0:00:27]} 34. Qb5 {[%clk 0:00:36]}  Qf8 {[%clk 0:00:23]} 35. Qd7 {[%clk 0:00:33]}  Nxf4 {[%clk 0:00:23]} 36. Bc4 {[%clk 0:00:24]}  Nh5 {[%clk 0:00:17]} 37. Qe6+ {[%clk 0:00:24]}  Qf7 {[%clk 0:00:17]} 38. Qxd6 {[%clk 0:00:21]}  f4 {[%clk 0:00:17]} 39. Qd8+ {[%clk 0:00:20]}  Qf8 {[%clk 0:00:17]} 40. d6# {[%clk 0:00:20]} 1-0


[Site "https://www.chess.com"]

[Event "Titled Tuesday Blitz August 17 2021"]
[White "Rosenberg, Evan S"]
[Black "Rozhkov, Viacheslav"]
[WhiteFideId "2019299"]
[BlackFideId "4181484"]
[WhiteElo "2287"]
[BlackElo "2324"]
[Result "0-1"]
[Round "07"]
[TimeControl "180+1"]
[Date "2021.08.18"]
[WhiteClock "0:00:07"]
[BlackClock "0:00:08"]

1. Nf3 {[%clk 0:03:00]}  d5 {[%clk 0:03:00]} 2. d4 {[%clk 0:03:00]}  Nf6 {[%clk 0:02:59]} 3. c4 {[%clk 0:03:00]}  dxc4 {[%clk 0:02:59]} 4. g3 {[%clk 0:02:59]}  Nc6 {[%clk 0:02:57]} 5. Bg2 {[%clk 0:02:57]}  e5 {[%clk 0:02:57]} 6. O-O {[%clk 0:02:44]}  exd4 {[%clk 0:02:57]} 7. Bf4 {[%clk 0:02:22]}  Be7 {[%clk 0:02:43]} 8. Ne5 {[%clk 0:02:13]}  Nxe5 {[%clk 0:02:38]} 9. Bxe5 {[%clk 0:02:14]}  c5 {[%clk 0:02:31]} 10. Qa4+ {[%clk 0:02:08]}  Bd7 {[%clk 0:02:30]} 11. Qxc4 {[%clk 0:02:05]}  Bc6 {[%clk 0:02:28]} 12. Bxc6+ {[%clk 0:01:59]}  bxc6 {[%clk 0:02:29]} 13. Bxf6 {[%clk 0:01:57]}  gxf6 {[%clk 0:01:41]} 14. Nd2 {[%clk 0:01:45]}  Qd5 {[%clk 0:01:41]} 15. Rac1 {[%clk 0:01:42]}  Rc8 {[%clk 0:01:25]} 16. Qa6 {[%clk 0:01:35]}  O-O {[%clk 0:01:23]} 17. b3 {[%clk 0:01:28]}  h5 {[%clk 0:01:15]} 18. Qxa7 {[%clk 0:01:25]}  Bd6 {[%clk 0:01:13]} 19. Qd7 {[%clk 0:01:22]}  Rfd8 {[%clk 0:01:04]} 20. Qh3 {[%clk 0:01:20]}  Kg7 {[%clk 0:00:50]} 21. Nc4 {[%clk 0:01:02]}  Bc7 {[%clk 0:00:44]} 22. Rfd1 {[%clk 0:00:57]}  Qg5 {[%clk 0:00:27]} 23. Rc2 {[%clk 0:00:48]}  h4 {[%clk 0:00:27]} 24. Qxh4 {[%clk 0:00:18]}  Qxh4 {[%clk 0:00:26]} 25. gxh4 {[%clk 0:00:19]}  Rh8 {[%clk 0:00:27]} 26. Rd3 {[%clk 0:00:15]}  Rxh4 {[%clk 0:00:26]} 27. h3 {[%clk 0:00:16]}  Rch8 {[%clk 0:00:25]} 28. Kg2 {[%clk 0:00:15]}  R8h5 {[%clk 0:00:24]} 29. Nd2 {[%clk 0:00:13]}  Rg5+ {[%clk 0:00:23]} 30. Kf1 {[%clk 0:00:13]}  Rh8 {[%clk 0:00:15]} 31. Nf3 {[%clk 0:00:13]}  Rd5 {[%clk 0:00:16]} 32. Kg2 {[%clk 0:00:12]}  Kf8 {[%clk 0:00:15]} 33. e3 {[%clk 0:00:10]}  Rg8+ {[%clk 0:00:13]} 34. Kf1 {[%clk 0:00:09]}  dxe3 {[%clk 0:00:04]} 35. Rxe3 {[%clk 0:00:09]}  Rh8 {[%clk 0:00:03]} 36. Ng1 {[%clk 0:00:07]}  Kg7 {[%clk 0:00:03]} 37. Ke2 {[%clk 0:00:07]}  Rhh5 {[%clk 0:00:03]} 38. Rd2 {[%clk 0:00:06]}  Rhf5 {[%clk 0:00:02]} 39. Rxd5 {[%clk 0:00:06]}  cxd5 {[%clk 0:00:03]} 40. Rf3 {[%clk 0:00:05]}  Re5+ {[%clk 0:00:03]} 41. Re3 {[%clk 0:00:05]}  Bd6 {[%clk 0:00:03]} 42. Nf3 {[%clk 0:00:05]}  Rf5 {[%clk 0:00:03]} 43. Nh4 {[%clk 0:00:04]}  Rh5 {[%clk 0:00:04]} 44. Ng2 {[%clk 0:00:04]}  d4 {[%clk 0:00:04]} 45. Rf3 {[%clk 0:00:03]}  Be5 {[%clk 0:00:05]} 46. Kd3 {[%clk 0:00:03]}  Rh4 {[%clk 0:00:05]} 47. Kc4 {[%clk 0:00:03]}  Rh5 {[%clk 0:00:06]} 48. Kd3 {[%clk 0:00:02]}  Kf8 {[%clk 0:00:05]} 49. Nf4 {[%clk 0:00:02]}  Rf5 {[%clk 0:00:05]} 50. Ke2 {[%clk 0:00:02]}  Rxf4 {[%clk 0:00:05]} 51. a4 {[%clk 0:00:03]}  Rxf3 {[%clk 0:00:05]} 52. Kxf3 {[%clk 0:00:04]}  Ke7 {[%clk 0:00:05]} 53. Ke4 {[%clk 0:00:04]}  Kd6 {[%clk 0:00:06]} 54. f4 {[%clk 0:00:05]}  f5+ {[%clk 0:00:03]} 55. Kxf5 {[%clk 0:00:05]}  d3 {[%clk 0:00:04]} 56. fxe5+ {[%clk 0:00:05]}  Kd5 {[%clk 0:00:04]} 57. a5 {[%clk 0:00:06]}  d2 {[%clk 0:00:05]} 58. a6 {[%clk 0:00:07]}  d1=Q {[%clk 0:00:05]} 59. a7 {[%clk 0:00:07]}  Qf1+ {[%clk 0:00:06]} 60. Kg5 {[%clk 0:00:07]}  Qa6 {[%clk 0:00:06]} 61. h4 {[%clk 0:00:06]}  Qxa7 {[%clk 0:00:07]} 62. Kf6 {[%clk 0:00:07]}  Qb6+ {[%clk 0:00:06]} 63. Kxf7 {[%clk 0:00:07]}  Qe6+ {[%clk 0:00:07]} 64. Kg7 {[%clk 0:00:06]}  Kxe5 {[%clk 0:00:07]} 65. h5 {[%clk 0:00:06]}  Kf5 {[%clk 0:00:08]} 66. h6 {[%clk 0:00:07]}  Qg6+ {[%clk 0:00:08]} 67. Kf8 {[%clk 0:00:07]}  Qh7 {[%clk 0:00:07]} 68. Ke8 {[%clk 0:00:07]}  Ke6 {[%clk 0:00:08]} 69. b4 {[%clk 0:00:07]}  Qe7# {[%clk 0:00:08]} 0-1


[Site "https://www.chess.com"]